bitfinex/quotes_ETHUSD_20240618
["timestamp","ask_amount","ask_price","bid_price","bid_amount"]
[1718677404268,2.92093,3423.6,3423.0,2.92135]
[1718677404468,0.07303586,3423.5,3423.0,2.92135]
[1718677404892,0.07303586,3423.5,3423.3,2.92114]
[1718677405085,3.7774,3424.4,3423.4,0.05841817]
[1718677405296,0.07301844,3424.4,3424.1,2.92043]
[1718677405484,0.07301844,3424.4,3424.2,2.92033]
[1718677405887,0.07301225,3424.8,3424.2,2.92033]
[1718677406089,2.91999,3424.7,3424.2,2.92033]
[1718677406290,0.07301224,3424.6,3424.2,2.92033]
[1718677406490,2.92034,3424.3,3423.8,2.92072]
[1718677406686,2.99342193,3424.2,3423.6,2.92089]
[1718677406887,2.92067,3423.9,3423.4,2.92101]
[1718677407086,0.07302846,3423.8,3423.5,2.92097]
[1718677407289,6.7774,3424.9,3423.5,0.292097]
[1718677407491,6.7774,3424.9,3424.2,2.92036]
[1718677407492,0.07301584,3424.8,3424.2,2.92036]
[1718677407812,0.07301584,3424.8,3423.3,2.92113]
[1718677407986,2.92032,3424.3,3423.5,2.92097]
[1718677408312,2.9205,3424.1,3423.6,2.92087]
[1718677408478,0.07302403,3424.0,3423.6,2.92087]
[1718677409581,0.07302403,3424.0,3423.0,0.584279]
[1718677409786,2.91998,3424.7,3424.1,2.92043]
[1718677410087,0.07301388,3424.6,3424.2,2.92038]
[1718677410421,2.99307388,3424.6,3424.0,2.92052]
[1718677410623,2.99307388,3424.6,3424.1,2.92046]
[1718677410822,2.92032,3424.3,3423.8,2.9207]
[1718677411122,0.07302109,3424.2,3423.3,2.92114]
[1718677411284,0.07301613,3424.6,3424.1,2.92046]
[1718677412096,2.99307613,3424.6,3423.9,2.92056]
[1718677412313,2.92051,3424.1,3423.6,2.92089]
[1718677412618,0.07302319,3424.0,3423.6,2.92089]
[1718677413025,2.99359319,3424.0,3423.6,2.92089]
[1718677413194,0.07302319,3424.0,3423.7,2.9208]
[1718677413399,2.92048,3424.1,3423.7,2.9208]
[1718677413720,0.07302286,3424.2,3423.7,2.9208]
[1718677413721,0.07302286,3424.0,3423.7,2.9208]
[1718677414621,0.07302286,3424.0,3423.2,2.92121]
[1718677414622,4.045,3424.0,3422.1,2.6233]
[1718677414794,2.92091,3423.6,3423.1,2.92129]
[1718677414990,0.07303265,3423.5,3422.9,2.92144]
[1718677415297,0.07303265,3423.5,3422.7,2.92163]
[1718677415980,2.9214,3423.1,3422.6,2.92174]
[1718677416183,2.92107,3423.4,3422.9,2.92149]
[1718677416501,2.9941992,3423.3,3422.9,2.92149]
[1718677417133,0.0730392,3423.3,3422.9,2.92149]
[1718677417430,0.07303254,3423.5,3423.1,2.92126]
[1718677418184,0.07303254,3423.5,3423.2,2.92122]
[1718677418379,0.07303178,3423.7,3423.2,2.92122]
[1718677418694,2.99385178,3423.7,3423.2,2.92122]
[1718677418893,4.045,3424.0,3423.1,2.92126]
[1718677419104,0.07302765,3423.9,3423.2,2.9212]
[1718677419311,0.07302765,3423.9,3423.4,2.92103]
[1718677419798,0.07302765,3423.9,3423.5,2.92098]
[1718677421635,0.07302765,3423.9,3423.7,2.92081]
[1718677421809,3.98622262,3423.9,3423.4,2.92101]
[1718677422021,6.90688262,3423.9,3423.5,2.92096]
[1718677422533,2.92116,3423.3,3422.4,2.92185]
[1718677422685,0.07303837,3423.2,3422.9,2.92149]
[1718677422883,0.07303837,3423.2,3423.0,2.9214]
[1718677423287,0.07303679,3423.4,3422.8,2.92155]
[1718677423491,0.07303679,3423.4,3422.9,2.92149]
[1718677423492,2.99411679,3423.4,3422.9,2.92149]
[1718677423924,0.07303679,3423.4,3423.1,2.92131]
[1718677424145,0.07303679,3423.4,3423.2,2.92122]
[1718677424356,3.9132,3423.9,3423.3,2.92112]
[1718677424520,0.07302782,3423.8,3423.4,2.92106]
[1718677424854,0.07302725,3423.7,3423.4,2.92106]
[1718677425756,0.07302722,3423.8,3423.5,2.92098]
[1718677425935,0.07302616,3423.7,3423.5,2.92098]
[1718677426335,0.07302616,3423.7,3423.0,2.92139]
[1718677426336,2.92111,3423.4,3422.9,2.92147]
[1718677426536,0.07303541,3423.3,3422.9,2.92147]
[1718677426768,0.07303541,3423.3,3422.6,2.92173]
[1718677426769,2.92135,3423.1,3422.6,2.92173]
[1718677426931,0.07304308,3423.0,3422.7,2.92166]
[1718677427274,0.07304308,3423.0,3422.5,2.92181]
[1718677427275,2.99447308,3423.0,3422.5,2.92181]
[1718677427829,0.07304308,3423.0,3421.0,2.6328]
[1718677428185,2.92201,3422.3,3421.8,2.92236]
[1718677428394,2.9951602,3422.2,3421.6,2.92256]
[1718677428848,2.9951602,3422.2,3421.7,2.92251]
[1718677429048,2.9951602,3422.2,3421.8,2.92243]
[1718677429255,2.9951602,3422.2,3421.6,2.92252]
[1718677429574,2.9951602,3422.2,3421.7,2.92251]
[1718677430452,2.92218,3422.1,3421.5,2.92268]
[1718677430661,0.07306405,3422.0,3421.6,2.9226]
[1718677431288,0.07306405,3422.0,3421.6,2.92253]
[1718677431948,0.07306405,3422.0,3421.7,2.92251]
[1718677432542,2.9219,3422.5,3422.0,2.92223]
[1718677432789,0.07305845,3422.4,3422.0,2.92223]
[1718677432985,0.07305845,3422.4,3421.8,2.92242]
[1718677433149,2.92159,3422.8,3422.3,2.92194]
[1718677433484,2.99472203,3422.7,3422.0,2.92223]
[1718677433689,3.939,3422.9,3422.1,2.92215]
[1718677433867,6.76956,3423.5,3422.9,2.92149]
[1718677434064,0.07303869,3423.4,3423.2,2.92122]
[1718677434263,3.8485,3423.5,3423.1,2.92131]
[1718677434474,0.07303506,3423.4,3423.1,2.92131]
[1718677434689,0.07303506,3423.4,3423.2,2.92122]
[1718677434905,2.92096,3423.6,3422.9,2.92142]
[1718677434906,0.073033,3423.5,3422.9,2.92142]
[1718677435490,2.92127,3423.2,3422.7,2.92164]
[1718677435681,0.0730429,3423.1,3422.7,2.92164]
[1718677435879,2.92095,3423.6,3422.9,2.92144]
[1718677436196,3.8485,3424.0,3422.4,2.92192]
[1718677436197,0.07303465,3423.5,3423.2,2.92116]
[1718677436697,0.07303296,3423.6,3423.3,2.92113]
[1718677436873,0.07303296,3423.6,3423.5,2.92098]
[1718677437063,0.07302686,3423.8,3423.5,2.92098]
[1718677437266,0.07302685,3423.7,3423.5,2.92098]
[1718677437461,0.07302568,3423.9,3423.6,2.92088]
[1718677437661,3.8485,3424.7,3424.0,2.92048]
[1718677437878,3.8485,3424.7,3423.1,2.92124]
[1718677437879,0.07301414,3424.6,3423.1,2.92124]
[1718677438117,2.99307414,3424.6,3424.1,2.92043]
[1718677439718,2.92014,3424.5,3424.1,2.92043]
[1718677440028,2.92014,3424.5,3423.8,2.92065]
[1718677440029,2.92036,3424.3,3423.7,2.92077]
[1718677440182,0.07302048,3424.2,3422.9,2.6328]
[1718677440377,2.92048,3424.1,3423.6,2.92089]
[1718677440584,2.92068,3423.9,3423.1,2.9213]
[1718677440779,2.99375559,3423.8,3423.1,2.9213]
[1718677441015,0.07303196,3423.7,3423.4,2.92105]
[1718677441215,0.07302685,3423.8,3423.1,2.9213]
[1718677441423,0.07302807,3423.7,3423.4,2.92099]
[1718677441621,2.92076,3423.8,3423.4,2.92099]
[1718677441828,0.07302738,3423.7,3423.4,2.92099]
[1718677442035,0.07302738,3423.7,3423.5,2.92097]
[1718677442315,0.07302632,3423.9,3423.6,2.92085]
[1718677443318,5.04628456,3424.7,3424.3,2.92029]
[1718677443667,0.07301053,3424.6,3423.9,2.92064]
[1718677443926,2.91969,3425.1,3424.7,2.91995]
[1718677444131,4.0888,3425.3,3424.7,2.91995]
[1718677444282,4.0888,3425.3,3424.8,2.9198]
[1718677444486,2.91954,3425.2,3424.6,2.91997]
[1718677444686,2.91954,3425.2,3424.5,2.92009]
[1718677445402,2.91962,3425.1,3424.6,2.92004]
[1718677445618,2.91962,3425.1,3424.7,2.91995]
[1718677445923,4.0888,3425.3,3424.7,2.91995]
[1718677446221,0.07300019,3425.2,3424.7,2.91995]
[1718677447230,2.99255019,3425.2,3424.7,2.91995]
[1718677448303,2.91911,3425.7,3424.7,0.584004]
[1718677448505,2.91869,3426.2,3425.7,2.91904]
[1718677448736,0.07297882,3426.1,3425.7,2.91904]
[1718677449106,2.91887,3426.0,3425.5,2.91926]
[1718677449313,0.07298362,3425.9,3425.5,2.91923]
[1718677449513,0.07298362,3425.9,3425.6,2.91912]
[1718677450011,0.07298362,3425.9,3424.3,2.92027]
[1718677450210,2.91912,3425.7,3425.2,2.91949]
[1718677450410,2.91912,3425.7,3424.4,0.292027]
[1718677450411,0.07299098,3425.6,3424.5,2.92006]
[1718677450645,2.9193,3425.5,3425.1,2.91961]
[1718677450863,0.07299329,3425.4,3425.1,2.91961]
[1718677451311,0.07299329,3425.4,3425.3,2.91945]
[1718677451505,6.9177,3426.1,3425.3,2.91945]
[1718677451759,0.07298217,3426.0,3425.8,2.91901]
[1718677452350,2.91836,3426.6,3425.0,2.91962]
[1718677452351,3.9977,3426.6,3426.1,2.91875]
[1718677452514,0.07297225,3426.5,3426.1,2.91875]
[1718677452716,0.07297225,3426.5,3426.2,2.91867]
[1718677453321,0.07297225,3426.5,3426.3,2.91858]
[1718677453536,0.07296776,3427.0,3426.3,2.91858]
[1718677453761,0.07296776,3427.0,3426.5,2.91842]
[1718677454141,2.99099776,3427.0,3426.5,2.91842]
[1718677454572,0.07296776,3427.0,3426.6,2.91832]
[1718677454773,0.07296776,3427.0,3426.4,2.91844]
[1718677455148,0.07296654,3427.0,3426.9,2.91808]
[1718677455532,0.116422,3427.2,3427.1,5.83582]
[1718677455737,0.116422,3427.2,3427.1,8.75373]
[1718677457957,0.116422,3427.2,3427.1,2.91791]
[1718677458487,0.116422,3427.2,3425.6,2.6383]
[1718677458699,0.116422,3427.2,3427.1,2.91791]
[1718677458843,0.116422,3427.2,3427.1,5.83582]
[1718677459973,0.116422,3427.2,3427.1,8.75373]
[1718677460171,0.116422,3427.2,3427.1,5.83582]
[1718677462386,3.034262,3427.2,3426.7,2.9182]
[1718677462709,2.91803,3427.0,3426.4,2.91844]
[1718677462877,0.07296407,3426.9,3426.5,2.91841]
[1718677463078,0.116422,3427.2,3424.9,2.6383]
[1718677463274,0.07295872,3427.1,3426.2,2.91862]
[1718677463467,0.18938077,3427.2,3426.5,2.91841]
[1718677463695,0.18938077,3427.2,3425.7,2.91903]
[1718677463918,2.91809,3426.9,3425.1,2.91961]
[1718677464120,2.91861,3426.3,3425.6,2.91916]
[1718677464319,0.07297513,3426.2,3425.9,2.91892]
[1718677464503,0.07297427,3426.4,3425.9,2.91892]
[1718677464703,2.91864,3426.3,3425.9,2.91886]
[1718677464924,0.07297662,3426.2,3425.7,2.91905]
[1718677465085,0.07297662,3426.2,3425.9,2.91892]
[1718677465290,0.116422,3427.2,3425.9,0.583797]
[1718677465606,2.99092183,3427.1,3426.7,2.91824]
[1718677466325,0.116422,3427.2,3427.0,2.91792]
[1718677467034,0.116422,3427.2,3427.1,2.91791]
[1718677467189,0.116422,3427.2,3427.1,5.83582]
[1718677468238,0.116422,3427.2,3426.7,2.91818]
[1718677468544,0.116422,3427.2,3426.2,2.91866]
[1718677468545,4.0698,3426.9,3426.2,2.91866]
[1718677468688,4.0698,3426.9,3426.0,2.91882]
[1718677468689,0.07296926,3426.8,3426.4,2.91846]
[1718677468886,0.07296606,3426.7,3426.5,2.91841]
[1718677469092,0.07296606,3426.7,3426.2,2.91861]
[1718677469329,0.07296606,3426.7,3426.4,2.91849]
[1718677469833,2.99123606,3426.7,3426.3,2.91859]
[1718677469990,2.99123606,3426.7,3425.6,2.91919]
[1718677470196,2.91881,3426.1,3425.7,2.9191]
[1718677470419,0.07297955,3426.0,3425.8,2.919]
[1718677470801,6.98797,3426.9,3425.7,2.91909]
[1718677470802,0.07297836,3426.2,3425.9,2.91889]
[1718677471024,0.07297432,3426.6,3426.4,2.91847]
[1718677471190,0.07297432,3426.6,3426.2,2.91862]
[1718677471506,0.07297432,3426.6,3426.0,2.91879]
[1718677471718,0.116422,3427.2,3426.8,2.91815]
[1718677472007,0.116422,3427.2,3426.5,2.9184]
[1718677472008,0.07296002,3427.1,3426.5,2.9184]
[1718677472209,0.07296002,3427.1,3426.3,2.91857]
[1718677472210,0.07296002,3427.1,3426.8,2.91816]
[1718677472644,0.07296002,3427.1,3425.6,2.91914]
[1718677472796,0.07296002,3427.1,3425.8,2.919]
[1718677473134,0.07296002,3427.1,3426.8,2.91813]
[1718677473708,0.07296002,3427.1,3425.7,0.291914]
[1718677473932,2.91822,3426.8,3426.2,2.91865]
[1718677474132,0.07296741,3426.7,3426.4,2.9185]
[1718677474507,0.07296741,3426.7,3426.5,2.91841]
[1718677474741,0.07296112,3427.1,3426.7,2.91819]
[1718677475531,0.07296112,3427.1,3426.9,2.91808]
[1718677475829,0.07296112,3427.1,3426.7,2.91819]
[1718677475830,0.07296112,3427.1,3426.8,2.91816]
[1718677477713,0.116422,3427.2,3427.0,5.836]
[1718677479532,4.0708,3427.1,3427.0,5.836]
[1718677479833,4.0708,3427.1,3426.7,2.91823]
[1718677480034,0.07295965,3427.0,3426.7,2.91823]
[1718677480240,0.07295965,3427.0,3426.2,2.91863]
[1718677480533,2.91818,3426.8,3426.4,2.9185]
[1718677480708,0.07296136,3426.7,3426.4,2.9185]
[1718677481032,2.99107131,3426.9,3426.3,2.91855]
[1718677481339,2.91818,3426.8,3426.4,2.91851]
[1718677481539,0.07296288,3426.7,3426.4,2.91851]
[1718677481833,2.91903,3425.8,3425.3,2.91944]
[1718677482044,2.91903,3425.8,3424.3,2.4384]
[1718677482045,3.685,3426.4,3425.7,2.91909]
[1718677482228,3.685,3426.4,3426.2,2.91864]
[1718677482229,0.07296981,3426.3,3426.2,2.91864]
[1718677482395,3.685,3426.4,3426.1,2.91875]
[1718677482600,2.91835,3426.6,3426.1,2.91875]
[1718677482811,2.91835,3426.6,3425.9,2.91889]
[1718677482812,2.99143947,3426.5,3425.9,2.91889]
[1718677483011,0.07296947,3426.5,3426.1,2.91876]
[1718677483234,2.99142947,3426.5,3426.0,2.91884]
[1718677484102,2.91853,3426.4,3426.0,2.91884]
[1718677484324,0.07297232,3426.3,3426.0,2.91884]
[1718677484535,2.91879,3426.1,3425.4,2.91928]
[1718677484745,0.07297803,3426.0,3425.7,2.91908]
[1718677485045,0.50497379,3426.8,3426.1,2.91874]
[1718677485255,0.07296943,3426.7,3426.2,2.91865]
[1718677485604,2.91838,3426.6,3426.2,2.91865]
[1718677485834,0.07296835,3426.5,3426.2,2.91865]
[1718677486419,2.99139835,3426.5,3426.0,2.91881]
[1718677486610,0.07296835,3426.5,3426.1,2.91875]
[1718677487420,2.99140835,3426.5,3426.1,2.91875]
[1718677487630,2.91852,3426.4,3426.0,2.91883]
[1718677487832,2.91852,3426.4,3425.3,2.91944]
[1718677487833,0.07297302,3426.3,3425.3,2.91944]
[1718677488058,2.91885,3426.0,3425.1,2.9196]
[1718677488353,2.91931,3425.5,3425.0,2.9197]
[1718677488552,2.99237755,3425.4,3425.0,2.9197]
[1718677488721,2.99237755,3425.4,3424.7,2.91989]
[1718677488722,3.8869,3425.3,3424.7,2.91989]
[1718677488927,0.07299753,3425.2,3424.9,2.91975]
[1718677489131,0.07299753,3425.2,3425.0,2.91969]
[1718677489330,0.07299505,3425.2,3425.0,2.91969]
[1718677489683,0.07299505,3425.2,3425.0,2.91967]
[1718677489814,0.07299505,3425.2,3424.9,2.91975]
[1718677490018,0.07299505,3425.2,3425.0,2.91969]
[1718677490250,0.07299505,3425.2,3424.8,2.9198]
[1718677490551,2.99253505,3425.2,3424.8,2.9198]
[1718677491141,0.07299505,3425.2,3425.0,2.91967]
[1718677491342,3.8869,3425.3,3424.9,2.91978]
[1718677491654,0.07299576,3425.2,3425.0,2.91969]
[1718677491840,3.8869,3425.3,3425.0,2.91969]
[1718677492044,6.8069,3425.9,3425.0,2.91969]
[1718677492244,3.0729908,3425.8,3425.0,2.91969]
[1718677492626,5.9920408,3425.8,3425.3,2.91943]
[1718677493536,2.9192,3425.6,3425.2,2.91953]
[1718677493928,0.0729906,3425.5,3425.2,2.91953]
[1718677494065,0.0729906,3425.5,3425.1,2.91961]
[1718677494240,3.8869,3425.9,3425.6,2.91918]
[1718677495197,3.9986,3426.4,3425.9,2.91892]
[1718677495479,0.07297617,3426.3,3426.1,2.91875]
[1718677496778,0.07297617,3426.3,3425.9,2.91892]
[1718677496936,2.99157617,3426.3,3425.9,2.91892]
[1718677497674,0.07297617,3426.3,3426.1,2.91873]
[1718677499017,2.99160617,3426.3,3425.8,2.91897]
[1718677500188,2.99160617,3426.3,3425.9,2.91893]
[1718677500527,0.07297617,3426.3,3425.3,2.91943]
[1718677500694,2.91903,3425.8,3425.4,2.91935]
[1718677501041,0.07298702,3425.7,3425.4,2.91933]
[1718677502404,0.07298702,3425.7,3425.3,2.91942]
[1718677502736,2.99219806,3425.6,3425.0,2.91965]
[1718677503033,6.85742,3425.5,3425.1,2.91957]
[1718677503347,6.85742,3425.5,3423.6,2.4384]
[1718677503348,0.07299363,3425.4,3424.7,2.91988]
[1718677503490,2.91956,3425.2,3424.7,2.91988]
[1718677503809,2.91956,3425.2,3424.3,2.92029]
[1718677503810,2.9199,3424.8,3424.3,2.92029]
[1718677504030,1.50135505,3425.6,3423.3,0.45736418]
[1718677504199,1.19778456,3426.0,3425.3,2.91939]
[1718677504404,0.0729865,3425.6,3425.5,2.91927]
[1718677504590,0.0729865,3425.6,3425.2,2.9195]
[1718677504793,2.9922165,3425.6,3425.1,2.91961]
[1718677505627,2.91937,3425.4,3424.7,2.91993]
[1718677505842,2.99244856,3425.3,3424.8,2.91986]
[1718677506038,5.83918,3425.7,3424.8,2.91986]
[1718677506039,2.99253771,3425.2,3424.8,2.91986]
[1718677506257,2.91963,3425.1,3424.6,2.91997]
[1718677506561,0.07299771,3425.2,3424.4,2.92019]
[1718677506562,2.91979,3424.9,3424.4,2.92019]
[1718677506759,0.07300575,3424.8,3424.4,2.92013]
[1718677506962,0.07300556,3424.7,3424.4,2.92013]
[1718677507099,0.07300556,3424.8,3424.4,3.504174]
[1718677507301,3.8491,3425.2,3424.4,3.504174]
[1718677507302,5.83912,3425.7,3425.1,2.91954]
[1718677507553,0.07299083,3425.5,3425.1,2.91954]
[1718677507696,0.07299083,3425.5,3424.5,2.9201]
[1718677507902,2.91941,3425.4,3424.9,2.91977]
[1718677508150,0.07299658,3425.3,3424.9,2.91977]
[1718677508501,0.07299658,3425.3,3424.5,2.9201]
[1718677508502,3.8491,3425.2,3424.5,2.9201]
[1718677508703,3.8491,3425.2,3424.4,2.92021]
[1718677508704,2.91988,3424.8,3424.4,2.92021]
[1718677508939,0.07300527,3424.7,3424.4,2.92021]
[1718677509141,0.07300527,3424.7,3424.0,2.92053]
[1718677509325,2.92022,3424.4,3424.0,2.92053]
[1718677509523,2.91975,3425.0,3423.9,2.92064]
[1718677509524,2.9933137,3424.3,3423.9,2.92064]
[1718677509699,2.91998,3424.7,3423.7,2.9208]
[1718677509909,0.07301434,3424.6,3423.9,2.92063]
[1718677510107,2.92014,3424.5,3424.1,2.92046]
[1718677510405,0.07301307,3424.4,3424.1,2.92046]
[1718677510900,0.07301307,3424.4,3423.7,2.9208]
[1718677511108,2.92034,3424.3,3423.7,2.9208]
[1718677511411,6.76796168,3424.2,3423.7,2.92078]
[1718677511620,2.92057,3424.0,3423.6,2.92089]
[1718677511830,0.07302303,3423.9,3423.6,2.92089]
[1718677512032,0.07302303,3423.9,3423.7,2.92081]
[1718677512737,0.07302166,3424.0,3423.6,2.92089]
[1718677513041,2.99358166,3424.0,3423.6,2.92089]
[1718677513227,0.07302166,3424.0,3423.7,2.9208]
[1718677514015,0.07302166,3424.0,3423.8,2.92069]
[1718677514220,0.07302054,3424.1,3423.8,2.92069]
[1718677514861,0.07302054,3424.1,3423.9,2.92061]
[1718677515050,0.07301414,3424.5,3423.6,2.92087]
[1718677515248,0.07301414,3424.5,3424.1,2.92046]
[1718677515433,0.07301414,3424.5,3424.2,2.92038]
[1718677516165,2.91957,3425.2,3423.7,2.92077]
[1718677516166,4.0341,3425.1,3424.8,2.91985]
[1718677516338,0.07300084,3425.0,3423.9,2.92057]
[1718677516537,0.07300084,3425.0,3424.0,0.35045973]
[1718677516743,2.91925,3425.6,3425.1,2.91956]
[1718677516938,2.99227223,3425.5,3424.9,2.91971]
[1718677517131,2.91938,3425.4,3425.0,2.91969]
[1718677517336,6.9541,3425.7,3424.5,2.92009]
[1718677517568,3.8938,3426.2,3425.8,2.91899]
[1718677517977,0.07297835,3426.1,3425.6,2.91915]
[1718677518148,2.91921,3425.6,3425.2,2.91952]
[1718677518353,0.07299181,3425.5,3425.2,2.91952]
[1718677519078,3.8938,3426.2,3425.2,0.58392]
[1718677519276,1.49764702,3426.5,3425.7,2.91909]
[1718677519618,1.49764702,3426.5,3426.0,2.91878]
[1718677519762,0.07296975,3426.2,3424.8,5.33865]
[1718677519951,2.91861,3426.3,3425.8,2.91894]
[1718677520154,0.07297305,3426.2,3426.0,2.91884]
[1718677520353,2.99169305,3426.2,3425.8,2.91894]
[1718677521074,0.07297305,3426.2,3426.0,2.91884]
[1718677521283,0.07296976,3426.5,3426.3,2.91859]
[1718677521791,2.92,3426.8,3426.4,2.91844]
[1718677521996,0.07296295,3426.7,3426.4,2.91844]
[1718677522296,2.91835,3426.6,3426.1,2.91873]
[1718677522472,0.07296933,3426.5,3426.1,2.91873]
[1718677522804,0.07296933,3426.5,3425.6,2.91919]
[1718677522972,3.8833,3426.4,3425.6,2.91919]
[1718677524023,2.91887,3426.0,3425.6,2.91919]
[1718677524163,0.07298029,3425.9,3425.7,2.9191]
[1718677524559,2.91861,3426.3,3425.6,2.91918]
[1718677524560,2.91886,3426.0,3425.6,2.91918]
[1718677524759,0.07298028,3425.9,3425.6,2.91918]
[1718677525001,3.8833,3426.4,3425.0,2.91965]
[1718677525210,0.0729752,3426.3,3426.0,2.91879]
[1718677525692,5.83822,3426.8,3426.0,2.91879]
[1718677525988,2.92,3426.8,3426.3,2.91859]
[1718677526186,3.034262,3427.2,3426.2,2.91864]
[1718677526389,2.99088026,3427.1,3426.7,2.91825]
[1718677526583,2.91801,3427.0,3426.5,2.91842]
[1718677526787,0.07296024,3426.9,3426.6,2.91833]
[1718677527293,0.07296024,3426.9,3426.2,2.91864]
[1718677527294,2.9182,3426.8,3426.2,2.91864]
[1718677527494,0.07296386,3426.7,3426.3,2.91858]
[1718677527694,0.07296386,3426.7,3426.4,2.91849]
[1718677527992,0.07296386,3426.7,3426.4,2.91844]
[1718677528295,0.07296386,3426.7,3426.5,2.91838]
[1718677528454,0.07296223,3426.9,3426.6,2.91833]
[1718677529122,0.116422,3427.2,3426.4,2.91844]
[1718677529301,0.07296017,3427.1,3426.7,2.91819]
[1718677529595,0.07296017,3427.1,3426.6,2.91833]
[1718677529994,0.07296017,3427.1,3426.7,2.91817]
[1718677530199,0.116422,3427.2,3426.9,2.91802]
[1718677530403,0.116422,3427.2,3427.1,2.91791]
[1718677530815,0.116422,3427.2,3427.1,5.83582]
[1718677531306,0.116422,3427.2,3427.0,5.83598]
[1718677531490,0.116422,3427.2,3426.9,2.91808]
[1718677531689,3.964,3427.1,3426.8,2.91816]
[1718677531900,0.07295618,3427.0,3426.7,2.91824]
[1718677532201,0.07295618,3427.0,3426.8,2.91816]
[1718677533016,0.07295617,3427.1,3426.8,2.91816]
[1718677533196,2.99090617,3427.1,3426.6,2.91831]
[1718677533799,2.99090617,3427.1,3426.7,2.91825]
[1718677535202,2.91818,3426.8,3426.4,2.9185]
[1718677535405,0.0729627,3426.7,3426.3,2.91857]
[1718677535591,2.91822,3426.8,3426.3,2.91857]
[1718677535792,0.07296296,3426.7,3426.4,2.91849]
[1718677537014,0.07296296,3426.7,3426.5,2.91842]
[1718677537778,0.116422,3427.2,3426.4,2.91851]
[1718677537980,0.07295835,3427.1,3426.9,2.91802]
[1718677538676,0.116422,3427.2,3427.0,2.91796]
[1718677538876,0.116422,3427.2,3427.1,0.05835507]
[1718677539641,0.0017503,3428.0,3427.9,2.91723]
[1718677539785,0.0017503,3428.0,3427.9,5.83446]
[1718677539988,0.0017503,3428.0,3427.9,8.75169]
[1718677540398,0.0017503,3428.0,3427.9,9.868269]
[1718677541545,2.91597,3429.4,3427.9,9.868269]
[1718677541546,2.91565,3429.8,3429.2,2.91608]
[1718677541703,0.07290668,3429.4,3429.0,2.91626]
[1718677541901,0.07290668,3429.4,3429.1,2.91619]
[1718677542137,4.91,3430.0,3429.3,2.916]
[1718677542138,2.91563,3429.8,3429.3,2.916]
[1718677542408,8.8939,3430.0,3428.9,2.91637]
[1718677542409,2.91554,3429.9,3429.5,2.91586]
[1718677542630,3.9839,3429.7,3427.0,3.7715]
[1718677542847,0.0729178,3429.6,3428.8,2.91644]
[1718677543158,0.0729178,3429.6,3428.6,2.91662]
[1718677543159,2.91605,3429.3,3428.6,2.91662]
[1718677543365,0.07291401,3429.2,3428.6,2.91662]
[1718677543638,0.07291401,3429.2,3428.8,2.91642]
[1718677543841,0.07291401,3429.2,3428.1,2.91699]
[1718677544181,2.91703,3428.2,3427.5,2.9175]
[1718677544506,7.3259,3429.1,3427.3,2.91768]
[1718677544507,2.91717,3428.0,3427.3,2.91768]
[1718677544814,0.07293781,3427.9,3427.6,2.91748]
[1718677545609,2.91679,3428.5,3428.1,2.91705]
[1718677545838,2.91679,3428.5,3427.2,2.91779]
[1718677545839,2.91648,3428.8,3427.9,2.91722]
[1718677546044,0.07292317,3428.7,3428.5,2.91671]
[1718677546248,0.07292317,3428.7,3428.3,2.91682]
[1718677546466,0.07292317,3428.7,3427.2,2.91779]
[1718677546467,2.98949317,3428.7,3427.2,2.91779]
[1718677546746,0.07292317,3428.7,3428.1,2.91705]
[1718677546958,2.9169,3428.3,3427.7,2.91732]
[1718677547105,0.07293126,3428.2,3426.5,9.6899]
[1718677547302,3.9839,3429.1,3427.5,2.91752]
[1718677547526,2.91638,3428.9,3428.1,2.91706]
[1718677547712,2.98940508,3428.8,3428.3,2.91685]
[1718677548043,0.07292508,3428.8,3427.5,2.91756]
[1718677548207,2.91665,3428.6,3428.1,2.91702]
[1718677548407,0.07292784,3428.5,3427.8,2.91731]
[1718677548607,0.07292784,3428.5,3428.1,2.91699]
[1718677548836,3.0,3429.0,3428.5,2.91667]
[1718677548837,5.91631,3429.0,3428.5,2.91667]
[1718677549005,2.98930996,3428.9,3428.5,2.91667]
[1718677549205,3.9839,3429.1,3428.7,2.91652]
[1718677549436,2.92,3429.3,3428.9,2.91635]
[1718677549642,0.07291079,3429.2,3428.8,2.91645]
[1718677549935,0.07291079,3429.2,3428.9,2.91637]
[1718677550541,0.07291079,3429.2,3427.6,2.91746]
[1718677550542,2.91634,3429.0,3428.6,2.91663]
[1718677550750,2.91614,3429.2,3428.6,2.91658]
[1718677551045,2.9891361,3429.1,3428.7,2.91654]
[1718677551616,3.8788,3429.0,3427.6,2.91746]
[1718677551925,3.8788,3429.0,3427.0,4.0266]
[1718677551926,0.07292452,3428.9,3428.1,2.91703]
[1718677552240,2.91652,3428.8,3428.3,2.91686]
[1718677552442,3.8788,3429.0,3428.5,2.91671]
[1718677552660,0.07291603,3428.9,3428.5,2.91671]
[1718677553145,2.91658,3428.7,3428.3,2.91683]
[1718677553437,2.91646,3428.9,3428.4,2.91679]
[1718677553638,3.8788,3429.0,3428.2,2.91691]
[1718677553639,0.07292023,3428.8,3428.2,2.91691]
[1718677554011,2.91671,3428.6,3428.1,2.91699]
[1718677554853,6.79511,3429.0,3428.4,2.91679]
[1718677555011,2.91622,3429.1,3428.6,2.91662]
[1718677555216,2.91614,3429.2,3427.9,2.91722]
[1718677555217,2.91645,3428.9,3428.2,2.91691]
[1718677555536,0.07291937,3428.8,3428.0,2.91708]
[1718677555711,0.07291936,3428.7,3428.0,2.91708]
[1718677555914,0.0729193,3429.1,3428.4,2.9168]
[1718677556149,0.0729193,3429.1,3427.5,2.9175]
[1718677556150,5.83609,3429.3,3428.8,2.91642]
[1718677556352,2.98904992,3429.2,3428.8,2.91642]
[1718677556706,0.07290992,3429.2,3428.8,2.91641]
[1718677557128,5.83605,3429.3,3428.8,2.91641]
[1718677557427,2.98904989,3429.2,3428.8,2.91641]
[1718677557753,2.91622,3429.1,3428.7,2.91655]